{"text_format":"3","workbook":"xlsx","n_sheets":3,"sheets":["Liste des bâtiments","Sommaire","Listes déroulantes"],"not_rendered":{"macros":1,"pivot_tables":1},"read":"whole","date_system":"1900"}

{"sheet":"Liste des bâtiments","index":0,"n_rows":257,"n_cols":19,"rows_kept":257,"merged":[[0,0,0,18],[1,0,1,1],[1,2,1,5],[1,6,1,7],[1,9,2,18],[2,0,2,1],[2,2,2,5],[2,6,2,7],[3,0,3,8],[3,9,3,18],[4,0,5,0],[4,1,5,1],[4,2,5,2],[4,3,5,3],[4,4,5,4],[4,5,4,6],[4,7,4,8],[4,9,4,11],[4,12,4,13],[4,14,4,15],[4,16,4,17],[4,18,5,18]]}
["* AU VOLET AMÉNAGEMENTS RÉSILIENTS : inscrire les bâtiments dont l’exposition aux inondations sera réduite par votre projet\n* AU VOLET RELOCALISATION : inscrire les bâtiments visés par votre projet\n– Les colonnes A à I sont des informations générales (adresse, zone inondable, usage, personnes protégées, valeur au rôle, etc.)\n– Les colonnes J à R doivent être remplies pour les demandes déposées au volet Relocalisation. Remplir uniquement les colonnes applicables selon le type d’activité choisi ou la catégorie de bâtiment visée"]
["Nom du demandeur :",{"$nulls":5},"No dossier :"]
["Titre du projet :",{"$nulls":5},"Taille moyenne des ménages privés de la municipalité (disponible sur Statcan)",null,0]
["<--------- I n f o r m a t i o n s    g é n é r a l e s --------->",{"$nulls":8},"<--------- V o l e t  R e l o c a l i s a t i o n --------->"]
["Nombre de bâtiments identifiés","Adresse","Catégorie / usage prédominant","Immatriculation du bâtiment","Valeur uniformisée du bâtiment","Estimation du nombre de personnes exposées selon l’usage du bâtiment",null,"Identification de la zone inondable",null,"Catégorie du bâtiment admissible",null,null,"Information sur le bâtiment admissible \n(situé en zone inondable)",null,"Information sur la nouvelle localisation \n(située hors de la zone inondable)",null,"Programmes du ministère de la Sécurité publique (MSP)",null,"Valeur du bâtiment établie conformément à la partie 3E du Manuel d’évaluation foncière du Québec, excluant les dépendances, \nsi applicable"]
[{"$nulls":5},"Nombre de logements","Nombre d’employés","Zone de récurrence ou zone d’embâcle de glace ","Catégorie associée","Bâtiment à vocation municipale ou communautaire,\nsi applicable","Bâtiment patrimonial inscrit au Registre du patrimoine culturel du Québec, \nsi applicable","Usage du bâtiment patrimonial,  si applicable","Propriété de l’immeuble \n(bâtiment et son terrain)","Coordonnées géographiques (x,y)","Propriété du terrain\n(ou de l’immeuble)","Coordonnées géographiques (x,y)","Le bâtiment admissible a fait l’objet d’une aide au Programme général d’indemnisation et d’aide financière (PGIAF) ou au Cadre pour la prévention des sinistres (CPS)","Année de la demande"]
[null,"Numéro, nom de rue, municipalité","Sélectionnez la catégorie correspondante (liste)","Inscrivez l’immatriculation à 18 chiffres du rôle d’évaluation","Inscrivez la valeur uniformisée la plus récente disponible","Bâtiments résidentiels","Bâtiments municipaux, institutionnels et d’entreprises (nombre d’employés approximatifs travaillant sur les lieux du bâtiment visé, si connu)","Sélectionnez, à partir de la liste déroulante, la zone inondable correspondant à la localisation du bâtiment","Cette information est remplie automatiquement selon ce qui est inscrit à la colonne H","Pour un bâtiment visé par un projet de relocalisation ou d’immunisation\n\nSélectionnez la situation \ncorrespondante (liste)","Pour un bâtiment visé par un projet de relocalisation ou d’immunisation\n\nSélectionnez la catégorie correspondante (liste)","Pour un bâtiment visé par un projet de relocalisation ou d’immunisation\n\nSélectionnez la catégorie correspondante (liste)","Pour le bâtiment visé par un projet de relocalisation ou d’immunisation\n\nSélectionnez la situation \ncorrespondante (liste)","Fournissez les coordonnées géographiques à l’aide de Google Maps\n\n(ex. : 46.20622, -72.80975)","Pour le terrain visé par un projet de relocalisation \n\nSélectionnez la situation \ncorrespondante (liste)","Fournissez les coordonnées géographiques à l’aide de Google Maps\n\n(ex. : 46.20622, -72.80975)","Pour un bâtiment visé par un projet de relocalisation ou d’immunisation\n\nSélectionnez la situation \ncorrespondante (liste)","Inscrivez l’année de la demande,\ns’il y a lieu","Pour un bâtiment visé par un projet de déplacement"]
[1,{"$nulls":7},{"$f":"IF(OR(H8=\"0-20 ans\",H8=\"embâcle avec mouvement de glaces\"),\"Grand courant\",IF(OR(H8=\"20-100 ans\",H8=\"Zone inondée 2017, 2019 (ZIS)\",H8=\"embâcle sans mouvement de glaces\"),\"Faible courant\",IF(H8=\"0-100 ans\",\"Sans distinction des zones de grand et de faible courant\",IF(H8=\"autre\",\"Situés au-delà de la zone inondable de faible courant\",\"\"))))","v":""}]
[2,{"$nulls":7},""]
[3,{"$nulls":7},""]
[4,{"$nulls":7},""]
[5,{"$nulls":7},""]
[6,{"$nulls":7},""]
[7,{"$nulls":7},""]
[8,{"$nulls":7},""]
[9,{"$nulls":7},""]
[10,{"$nulls":7},""]
[11,{"$nulls":7},""]
[12,{"$nulls":7},""]
[13,{"$nulls":7},""]
[14,{"$nulls":7},""]
[15,{"$nulls":7},""]
[16,{"$nulls":7},""]
[17,{"$nulls":7},""]
[18,{"$nulls":7},""]
[19,{"$nulls":7},""]
[20,{"$nulls":7},""]
[21,{"$nulls":7},""]
[22,{"$nulls":7},""]
[23,{"$nulls":7},""]
[24,{"$nulls":7},""]
[25,{"$nulls":7},""]
[26,{"$nulls":7},""]
[27,{"$nulls":7},""]
[28,{"$nulls":7},""]
[29,{"$nulls":7},""]
[30,{"$nulls":7},""]
[31,{"$nulls":7},""]
[32,{"$nulls":7},""]
[33,{"$nulls":7},""]
[34,{"$nulls":7},""]
[35,{"$nulls":7},""]
[36,{"$nulls":7},""]
[37,{"$nulls":7},""]
[38,{"$nulls":7},""]
[39,{"$nulls":7},""]
[40,{"$nulls":7},""]
[41,{"$nulls":7},""]
[42,{"$nulls":7},""]
[43,{"$nulls":7},""]
[44,{"$nulls":7},""]
[45,{"$nulls":7},""]
[46,{"$nulls":7},""]
[47,{"$nulls":7},""]
[48,{"$nulls":7},""]
[49,{"$nulls":7},""]
[50,{"$nulls":7},{"$f":"IF(OR(H57=\"0-20 ans\",H57=\"embâcle avec mouvement de glaces\"),\"Grand courant\",IF(OR(H57=\"20-100 ans\",H57=\"Zone inondée 2017, 2019 (ZIS)\",H57=\"embâcle sans mouvement de glaces\"),\"Faible courant\",IF(H57=\"0-100 ans\",\"Sans distinction des zones de grand et de faible courant\",IF(H57=\"autre\",\"Situés au-delà de la zone inondable de faible courant\",\"\"))))","v":""}]
[51,{"$nulls":7},""]
[52,{"$nulls":7},""]
[53,{"$nulls":7},""]
[54,{"$nulls":7},""]
[55,{"$nulls":7},""]
[56,{"$nulls":7},""]
[57,{"$nulls":7},""]
[58,{"$nulls":7},""]
[59,{"$nulls":7},""]
[60,{"$nulls":7},""]
[61,{"$nulls":7},""]
[62,{"$nulls":7},""]
[63,{"$nulls":7},""]
[64,{"$nulls":7},""]
[65,{"$nulls":7},""]
[66,{"$nulls":7},""]
[67,{"$nulls":7},""]
[68,{"$nulls":7},""]
[69,{"$nulls":7},""]
[70,{"$nulls":7},""]
[71,{"$nulls":7},""]
[72,{"$nulls":7},""]
[73,{"$nulls":7},""]
[74,{"$nulls":7},""]
[75,{"$nulls":7},""]
[76,{"$nulls":7},""]
[77,{"$nulls":7},""]
[78,{"$nulls":7},""]
[79,{"$nulls":7},""]
[80,{"$nulls":7},""]
[81,{"$nulls":7},""]
[82,{"$nulls":7},""]
[83,{"$nulls":7},""]
[84,{"$nulls":7},""]
[85,{"$nulls":7},""]
[86,{"$nulls":7},""]
[87,{"$nulls":7},""]
[88,{"$nulls":7},""]
[89,{"$nulls":7},""]
[90,{"$nulls":7},""]
[91,{"$nulls":7},""]
[92,{"$nulls":7},""]
[93,{"$nulls":7},""]
[94,{"$nulls":7},""]
[95,{"$nulls":7},""]
[96,{"$nulls":7},""]
[97,{"$nulls":7},""]
[98,{"$nulls":7},""]
[99,{"$nulls":7},""]
[100,{"$nulls":7},""]
[101,{"$nulls":7},""]
[102,{"$nulls":7},""]
[103,{"$nulls":7},""]
[104,{"$nulls":7},""]
[105,{"$nulls":7},""]
[106,{"$nulls":7},""]
[107,{"$nulls":7},""]
[108,{"$nulls":7},""]
[109,{"$nulls":7},""]
[110,{"$nulls":7},""]
[111,{"$nulls":7},""]
[112,{"$nulls":7},""]
[113,{"$nulls":7},""]
[114,{"$nulls":7},{"$f":"IF(OR(H121=\"0-20 ans\",H121=\"embâcle avec mouvement de glaces\"),\"Grand courant\",IF(OR(H121=\"20-100 ans\",H121=\"Zone inondée 2017, 2019 (ZIS)\",H121=\"embâcle sans mouvement de glaces\"),\"Faible courant\",IF(H121=\"0-100 ans\",\"Sans distinction des zones de grand et de faible courant\",IF(H121=\"autre\",\"Situés au-delà de la zone inondable de faible courant\",\"\"))))","v":""}]
[115,{"$nulls":7},""]
[116,{"$nulls":7},""]
[117,{"$nulls":7},""]
[118,{"$nulls":7},""]
[119,{"$nulls":7},""]
[120,{"$nulls":7},""]
[121,{"$nulls":7},""]
[122,{"$nulls":7},""]
[123,{"$nulls":7},""]
[124,{"$nulls":7},""]
[125,{"$nulls":7},""]
[126,{"$nulls":7},""]
[127,{"$nulls":7},""]
[128,{"$nulls":7},""]
[129,{"$nulls":7},""]
[130,{"$nulls":7},""]
[131,{"$nulls":7},""]
[132,{"$nulls":7},""]
[133,{"$nulls":7},""]
[134,{"$nulls":7},""]
[135,{"$nulls":7},""]
[136,{"$nulls":7},""]
[137,{"$nulls":7},""]
[138,{"$nulls":7},""]
[139,{"$nulls":7},""]
[140,{"$nulls":7},""]
[141,{"$nulls":7},""]
[142,{"$nulls":7},""]
[143,{"$nulls":7},""]
[144,{"$nulls":7},""]
[145,{"$nulls":7},""]
[146,{"$nulls":7},""]
[147,{"$nulls":7},""]
[148,{"$nulls":7},""]
[149,{"$nulls":7},""]
[150,{"$nulls":7},""]
[151,{"$nulls":7},""]
[152,{"$nulls":7},""]
[153,{"$nulls":7},""]
[154,{"$nulls":7},""]
[155,{"$nulls":7},""]
[156,{"$nulls":7},""]
[157,{"$nulls":7},""]
[158,{"$nulls":7},""]
[159,{"$nulls":7},""]
[160,{"$nulls":7},""]
[161,{"$nulls":7},""]
[162,{"$nulls":7},""]
[163,{"$nulls":7},""]
[164,{"$nulls":7},""]
[165,{"$nulls":7},""]
[166,{"$nulls":7},""]
[167,{"$nulls":7},""]
[168,{"$nulls":7},""]
[169,{"$nulls":7},""]
[170,{"$nulls":7},""]
[171,{"$nulls":7},""]
[172,{"$nulls":7},""]
[173,{"$nulls":7},""]
[174,{"$nulls":7},""]
[175,{"$nulls":7},""]
[176,{"$nulls":7},""]
[177,{"$nulls":7},""]
[178,{"$nulls":7},{"$f":"IF(OR(H185=\"0-20 ans\",H185=\"embâcle avec mouvement de glaces\"),\"Grand courant\",IF(OR(H185=\"20-100 ans\",H185=\"Zone inondée 2017, 2019 (ZIS)\",H185=\"embâcle sans mouvement de glaces\"),\"Faible courant\",IF(H185=\"0-100 ans\",\"Sans distinction des zones de grand et de faible courant\",IF(H185=\"autre\",\"Situés au-delà de la zone inondable de faible courant\",\"\"))))","v":""}]
[179,{"$nulls":7},""]
[180,{"$nulls":7},""]
[181,{"$nulls":7},""]
[182,{"$nulls":7},""]
[183,{"$nulls":7},""]
[184,{"$nulls":7},""]
[185,{"$nulls":7},""]
[186,{"$nulls":7},""]
[187,{"$nulls":7},""]
[188,{"$nulls":7},""]
[189,{"$nulls":7},""]
[190,{"$nulls":7},""]
[191,{"$nulls":7},""]
[192,{"$nulls":7},""]
[193,{"$nulls":7},""]
[194,{"$nulls":7},""]
[195,{"$nulls":7},""]
[196,{"$nulls":7},""]
[197,{"$nulls":7},""]
[198,{"$nulls":7},""]
[199,{"$nulls":7},""]
[200,{"$nulls":7},""]
[201,{"$nulls":7},""]
[202,{"$nulls":7},""]
[203,{"$nulls":7},""]
[204,{"$nulls":7},""]
[205,{"$nulls":7},""]
[206,{"$nulls":7},""]
[207,{"$nulls":7},""]
[208,{"$nulls":7},""]
[209,{"$nulls":7},""]
[210,{"$nulls":7},""]
[211,{"$nulls":7},""]
[212,{"$nulls":7},""]
[213,{"$nulls":7},""]
[214,{"$nulls":7},""]
[215,{"$nulls":7},""]
[216,{"$nulls":7},""]
[217,{"$nulls":7},""]
[218,{"$nulls":7},""]
[219,{"$nulls":7},""]
[220,{"$nulls":7},""]
[221,{"$nulls":7},""]
[222,{"$nulls":7},""]
[223,{"$nulls":7},""]
[224,{"$nulls":7},""]
[225,{"$nulls":7},""]
[226,{"$nulls":7},""]
[227,{"$nulls":7},""]
[228,{"$nulls":7},""]
[229,{"$nulls":7},""]
[230,{"$nulls":7},""]
[231,{"$nulls":7},""]
[232,{"$nulls":7},""]
[233,{"$nulls":7},""]
[234,{"$nulls":7},""]
[235,{"$nulls":7},""]
[236,{"$nulls":7},""]
[237,{"$nulls":7},""]
[238,{"$nulls":7},""]
[239,{"$nulls":7},""]
[240,{"$nulls":7},""]
[241,{"$nulls":7},""]
[242,{"$nulls":7},{"$f":"IF(OR(H249=\"0-20 ans\",H249=\"embâcle avec mouvement de glaces\"),\"Grand courant\",IF(OR(H249=\"20-100 ans\",H249=\"Zone inondée 2017, 2019 (ZIS)\",H249=\"embâcle sans mouvement de glaces\"),\"Faible courant\",IF(H249=\"0-100 ans\",\"Sans distinction des zones de grand et de faible courant\",IF(H249=\"autre\",\"Situés au-delà de la zone inondable de faible courant\",\"\"))))","v":""}]
[243,{"$nulls":7},""]
[244,{"$nulls":7},""]
[245,{"$nulls":7},""]
[246,{"$nulls":7},""]
[247,{"$nulls":7},""]
[248,{"$nulls":7},""]
[249,{"$nulls":7},""]
[250,{"$nulls":7},""]

{"sheet":"Sommaire","index":1,"n_rows":8,"n_cols":7,"rows_kept":8,"hidden":true,"merged":[[3,1,3,6]]}
["SOMMAIRE _ Estimation du nombre de personnes et de bâtiments exposés"]
[]
[]
[null,"Valeur des bâtiments et nombre d'employés, de logements et de résidents exposés selon la zone inondable"]
[null,"Zone inondable","Valeur des bâtiments","Nombre de bâtiments","Nombre d'employés","Nombre de logements","Nombre de résidents estimé"]
[null,"(vide)",{"$nulls":4},0]
[{"$nulls":6},0]
[null,"Total général",{"$nulls":4},0]

{"sheet":"Listes déroulantes","index":2,"n_rows":52,"n_cols":2,"rows_kept":52,"hidden":true}
["Catégorie / usage"]
[null,"Résidentiel"]
[null,"Entreprise"]
[null,"Municipal"]
[null,"Institutionnel"]
[null,"Autre"]
[]
["Zone inondable"]
[null,"0-20 ans"]
[null,"0-100 ans"]
[null,"20-100 ans"]
[null,"Zone inondée 2017, 2019 (ZIS)"]
[null,"Embâcle avec mouvement de glaces"]
[null,"Embâcle sans mouvement de glaces"]
[null,"Autre"]
[]
["Bâtiments municipaux"]
[null,"Hôtel de ville"]
[null,"Bureau administratif de MRC"]
[null,"Caserne de pompier"]
[null,"Centre ou salle communautaire"]
[null,"Garage municipal"]
[null,"Entrepôt municipal"]
[null,"Abri à abrasif"]
[null,"Autre"]
[]
["Bâtiments patrimoniaux"]
[null,"Bâtiment patrimonial classé"]
[null,"Bâtiment patrimonial cité"]
[null,"Situé dans un site patrimonial classé, déclaré ou cité"]
[null,"Non patrimonial"]
[]
["Bâtiments patrimoniaux / usage"]
[null,"Résidence principale"]
[null,"Résidence secondaire"]
[null,"Bâtiment essentiel à l’expoitation d’une entreprise"]
[null,"Municipal ou communautaire"]
[null,"Autre"]
[null,"Non applicable"]
[]
["Propriété"]
[null,"Appartient au demandeur "]
[null,"Est détenu ou en voie d’être détenu par le demandeur par emphytéose (minimum 15 ans)"]
[null,"N’appartient pas au demandeur, mais sera acquis "]
[null,"N’appartient pas au demandeur"]
[null,"Autre"]
[]
["Aide PGIAF ou CPS"]
[null,"Oui (PGIAF)"]
[null,"Oui (CPS)"]
[null,"Non"]
[null,"Inconnu"]